Cogmind - Beta 14 @@@ ROGUE MODE // 2024.08.22 @ 15:47:44 Player: Minty Result: Destroyed by as-17175 with Assembled Rifle Performance ------------- Evolutions (0) 0 Regions Visited (2) 400 Robots Destroyed (28) 140 Value Destroyed (641) 641 Prototype IDs (4) 80 Alien Tech Used (0) 0 Bonus (0) 0 TOTAL SCORE: 1261 Bonus ------- None Cogmind --------- Core Integrity 0/250 Matter 217/300 Energy 250/250 System Corruption 0% Temperature Cool (66) Movement Rolling (95) Ox1 Location -10/Mines Parts ------- > --- POWER (1) -------- Ion Engine > --- PROPULSION (2) --- Wheel > --- UTILITY (2) ------ Small Storage Unit Visual Processing Unit > --- WEAPON (2) ------- Light Cannon Light Cannon > --- INVENTORY (8) ---- Wheel Combat Airjet Small Storage Unit Medium Matter Pod (100) Sensor Array Particle Gun Mining Laser Peak State ------------ > --- POWER ------------ Ion Engine > --- PROPULSION ------- Wheel Wheel > --- UTILITY ---------- Small Storage Unit Visual Processing Unit > --- WEAPON ----------- Light Cannon Light Cannon > --- INVENTORY -------- Combat Airjet Small Storage Unit Medium Matter Pod Sensor Array Particle Gun Mining Laser [Rating: 9] Favorites ----------- Power Ion Engine Engine Ion Engine Propulsion Wheel Leg Aluminum Leg Wheel Wheel Utility Small Storage Unit Storage Small Storage Unit Processor Visual Processing Unit Weapon Light Cannon Energy Gun Small Laser Ballistic Gun Assault Rifle Ballistic Cannon Light Cannon Build | -11 -10 -10 ------- Run | Yrd Mat Min Slots Evolved . | . . . Power . | . . . Propulsion . | . . . Utility . | . . . Weapon . | . . . Parts Attached 15 | . 9 6 Power 3 | . 2 1 Engine 3 | . 2 1 Core . | . . . Reactor . | . . . Propulsion 6 | . 3 3 Treads . | . . . Leg 1 | . 1 . Wheel 5 | . 2 3 Hover . | . . . Flight . | . . . Utility 1 | . 1 . Device . | . . . Storage . | . . . Processor 1 | . 1 . Hackware . | . . . Protection . | . . . Artifact . | . . . Weapon 5 | . 3 2 Energy Gun . | . . . Energy Cannon . | . . . Ballistic Gun 1 | . 1 . Ballistic Cannon 4 | . 2 2 Launcher . | . . . Special Weapon . | . . . Impact Weapon . | . . . Slashing Weapon . | . . . Piercing Weapon . | . . . Special Melee Weapon . | . . . Unidentified Prototypes . | . . . Parts Lost 6 | . . 6 Power 1 | . . 1 Propulsion 3 | . . 3 Utility . | . . . Weapon 2 | . . 2 Highest Loss Streak 3 | . . 3 To Critical Strikes . | . . . Average Slot Usage (%) 88 | . 82 97 Engine 13 | . 14 12 Wheel 27 | . 27 27 Storage 14 | . 14 14 Processor 7 | . 4 14 Ballistic Gun 3 | . 6 . Ballistic Cannon 20 | . 15 28 Peak Build Rating 9 | 6 8 9 Average Rating 6 | 6 6 7 On Entrance 6 | 6 6 8 Naked Turns . | . . . Heaviest Build 16 | 10 16 16 Greatest Support 20 | 20 20 20 Greatest Overweight (x) 1 | . . 1 Average Overweight (x) . | . . . Largest Inventory Capacity 8 | 8 8 8 Average Capacity 8 | 8 8 8 Most Carried 8 | 6 8 8 Average Carried 6 | 6 5 6 Final Capacity 8 | 8 8 8 Final Carried 8 | 6 8 7 Class Distribution -------------------- 85% | Mutant 14% | Scavenger-Mutant Dominant Class ---------------- Mutant | -10/Materials Mutant | -10/Mines Resources | -11 -10 -10 ----------- Run | Yrd Mat Min Matter Collected 1048 | 200 521 327 Remotely . | . . . Salvage Created 627 | . 440 187 Parts 48 | . 31 17 Haulers Intercepted 1 | . 1 . Recyclers Shooed . | . . . Parts Field Recycled . | . . . Retrieved Matter . | . . . Parts Self-Destructed . | . . . Prevented . | . . . Kills | -11 -10 -10 ------- Run | Yrd Mat Min Combat Hostiles Destroyed 30 | . 13 17 Guns 1 | . 1 . Cannons 29 | . 12 17 Classes Destroyed 7 | . 6 1 Worker 1 | . 1 . Hauler 1 | . 1 . Mechanic 1 | . 1 . Watcher 2 | . 2 . Swarmer 12 | . 6 6 Grunt 11 | . 7 4 Assembled 7 | . . 7 Best Kill Streak 9 | . 9 4 Combat Bots Only 6 | . 6 4 Max Kills in Single Turn 2 | . 2 1 Gunslinging . | . . . Exploded . | . . . Melee . | . . . Uniques/NPCs Destroyed . | . . . Combat | -11 -10 -10 -------- Run | Yrd Mat Min Hostile Shots Fired 130 | . 55 75 Missed 44 | . 24 20 Damage Taken 946 | . 319 627 Core 252 | . 124 128 Absorbed by Shields . | . . . Core Remaining (%) 100 | 100 . . Volleys Fired 118 | . 70 48 Largest 2 | . 2 2 Hottest 70 | . 70 70 Shots Fired 191 | . 95 96 Gun 45 | . 45 . Cannon 146 | . 50 96 Launcher . | . . . Special . | . . . Kinetic 191 | . 95 96 Thermal . | . . . Explosive . | . . . Electromagnetic . | . . . Robot Hit Streak 8 | . 8 7 Robot Miss Streak 6 | . 5 6 Penetration Max . | . . . Secondary Targets . | . . . Shots Hit Robots 78 | . 38 40 Core Hits 40 | . 20 20 Critical Kills . | . . . Critical Parts Destroyed . | . . . Critical Strikes 8 | . 2 6 Blast 8 | . 2 6 Melee Attacks . | . . . Impact . | . . . Slashing . | . . . Piercing . | . . . Sneak Attacks . | . . . Combat Hostiles . | . . . Follow-up Attacks . | . . . Damage Inflicted 1406 | . 676 730 Guns 163 | . 163 . Cannons 1224 | . 505 719 Explosions . | . . . Melee . | . . . Ramming 19 | . 8 11 Kinetic 1387 | . 668 719 Thermal . | . . . Explosive . | . . . Electromagnetic . | . . . Impact . | . . . Slashing . | . . . Piercing . | . . . Highest Corruption . | . . . Average Corruption . | . . . Corruption Purged . | . . . Corruption Blocked . | . . . Overload Shots . | . . . Overflow Damage . | . . . Projectiles . | . . . Explosions . | . . . Melee . | . . . Knockbacks 11 | . 3 8 Impact . | . . . Kinetic 11 | . 3 8 Secondary . | . . . Self-Inflicted Damage 8 | . 3 5 Shots . | . . . Rammed 3 | . 2 1 Targets Rammed 3 | . 2 1 Kicked . | . . . Crushed . | . . . Highest Temperature 93 | . 93 76 Average Temperature 30 | . 39 25 Received Heat Transfer 298 | . 120 178 Siege Activations . | . . . Robots Corrupted . | . . . Combat Hostiles . | . . . Parts Fried . | . . . Impact Corruptions . | . . . Robots Melted . | . . . Combat Hostiles . | . . . Parts Melted . | . . . Heat Transferred . | . . . Parts Sabotaged . | . . . Parts Stolen . | . . . Parts Stripped . | . . . Power Chain Reactions . | . . . Alert | -11 -10 -10 ------- Run | Yrd Mat Min Peak Influence 361 | . 361 356 Initial 91 | . . 91 Average 196 | . 133 296 Maximum Alert Level 1 | . 1 1 Low Security (%) 43 | 100 61 13 Level 1 56 | . 38 86 Level 2 . | . . . Level 3 . | . . . Level 4 . | . . . Level 5 . | . . . High Security . | . . . Max Security . | . . . Squads Dispatched 2 | . 2 . Investigation 2 | . 2 . Extermination . | . . . Reinforcement . | . . . Assault . | . . . Garrison . | . . . Intercept . | . . . Searches Triggered . | . . . Construction Impeded . | . . . Haulers Reinforced . | . . . Active Scanning Responses . | . . . Cargo Convoy Interrupts . | . . . Stealth | -11 -10 -10 --------- Run | Yrd Mat Min Distress Signals . | . . . Communications Jammed . | . . . Distress Signals . | . . . Times Spotted 49 | . 17 32 Peak Tracking Total 20 | . 6 20 Tactical Retreats 3 | . 1 2 Traps | -11 -10 -10 ------- Run | Yrd Mat Min Traps Triggered 1 | . 1 . Indirectly . | . . . Trap Hack Attempts . | . . . Triggered . | . . . Disarmed . | . . . Reprogrammed 6 | . 6 . Reused . | . . . Traps Extracted . | . . . Installed . | . . . Triggered . | . . . Machines | -11 -10 -10 ---------- Run | Yrd Mat Min Machines Disabled 6 | . 2 4 Max in Single Turn 1 | . 1 1 Machines Repaired . | . . . Machines Dismantled . | . . . Machines Sabotaged . | . . . Overloaded Fab Kills . | . . . Hacking | -11 -10 -10 --------- Run | Yrd Mat Min Machines Accessed 4 | . 4 . Terminals 4 | . 4 . Fabricators . | . . . Repair Stations . | . . . Recycling Units . | . . . Scanalyzers . | . . . Garrison Access . | . . . Total Hacks 12 | . 12 . Successful 7 | . 7 . Failed 5 | . 5 . Catastrophic . | . . . Database Lockouts . | . . . Manual 6 | . 6 . Terminals 12 | . 12 . Fabricators . | . . . Repair Stations . | . . . Recycling Units . | . . . Scanalyzers . | . . . Garrison Access . | . . . Terminal Hacks 5 | . 5 . Prototype ID Bank 2 | . 2 . Branch Access Points 1 | . 1 . Locate Traps 1 | . 1 . Reprogram Traps 1 | . 1 . Fabricator Hacks . | . . . Repair Station Hacks . | . . . Recycling Unit Hacks . | . . . Scanalyzer . | . . . Garrison Access Hacks . | . . . Unauthorized Hacks 2 | . 2 . Terminals 2 | . 2 . Botnet 2 | . 2 . Fabricators . | . . . Repair Stations . | . . . Recycling Units . | . . . Scanalyzers . | . . . Garrison Access . | . . . Data Cores Recovered . | . . . Used . | . . . Hacking Detections 4 | . 4 . Full Trace Events 2 | . 2 . Feedback Events . | . . . Feedback Blocked . | . . . Robot Schematics Acquired . | . . . Robots Built . | . . . Authchips . | . . . Time . | . . . Total Robot Build Rating . | . . . Part Schematics Acquired . | . . . Parts Built . | . . . Authchips . | . . . Time . | . . . Total Part Build Rating . | . . . Parts Repaired . | . . . Time . | . . . Parts Recycled . | . . . Recycled Matter . | . . . Retrieved Matter . | . . . Retrieved Components . | . . . Parts Scanalyzed . | . . . Part Schematics Acquired . | . . . Parts Damaged . | . . . Bothacking | -11 -10 -10 ------------ Run | Yrd Mat Min Used RIF Installer . | . . . Robots Hacked . | . . . Non-combat . | . . . Combat . | . . . Robot Hacks Applied . | . . . Relay Couplers Released . | . . . Fabnet Peak Effective % . | . . . Robots Rewired . | . . . Allies Hacked . | . . . Hacks Repelled . | . . . Allies | -11 -10 -10 -------- Run | Yrd Mat Min Total Allies . | . . . Largest Group . | . . . Highest-Rated Group . | . . . Highest-Rated Ally . | . . . Total Orders . | . . . Ally Attacks . | . . . Total Damage . | . . . Kills . | . . . Allies Corrupted . | . . . Allies Melted . | . . . Intel | -11 -10 -10 ------- Run | Yrd Mat Min Robot Analysis Total . | . . . Derelict Logs Recovered . | . . . Drone Launches . | . . . Drone Recoveries . | . . . Exploration | -11 -10 -10 ------------- Run | Yrd Mat Min Turns Passed 798 | 2 486 310 Spaces Moved 550 | 2 357 191 Core . | . . . Treads . | . . . Legs 4 | 2 2 . Wheels 546 | . 355 191 Hover . | . . . Flight . | . . . Fastest Speed 80 | 120 80 80 Average Speed 80 | 120 80 80 Slowest Speed 120 | 120 120 95 Overloaded Moves . | . . . Propulsion Burnouts . | . . . Robots Hopped . | . . . Cave-ins Triggered . | . . . Exploration Rate (%) 38 | 1 64 51 Regions Visited 2 Branch Regions 1 Pre-discovered Areas . | . . . Known Exits Taken 1 | . 1 . Unknown Exits Taken 1 | 1 . . Scrap Searched . | . . . Spaces Dug . | . . . Terrain Destroyed . | . . . Melee . | . . . Projectile . | . . . AOE . | . . . Terrain Rammed . | . . . Walls Destroyed . | . . . Machines Disabled . | . . . Actions | -11 -10 -10 --------- Run | Yrd Mat Min Total 719 | 1 466 252 Wait 8 | . 4 4 Move 548 | 1 356 191 Hop . | . . . Pick Up 12 | . 10 2 Fast Attach 5 | . 4 1 Attach 9 | . 5 4 Detach 4 | . 4 . Swap 1 | . . 1 Drop 11 | . 11 . Fire 118 | . 70 48 Melee . | . . . Ram 3 | . 2 1 Kick . | . . . Crush . | . . . Escape Stasis . | . . . Rewire . | . . . Trap . | . . . Miscellaneous . | . . . Route ------- -11/Scrapyard -10/Materials (discovered 3 exits: [*Mat x2] / *Min) -10/Mines History --------- Turn | Location | Event 1 | -11/Scrapyard | Discovered new exit (range 1) 3 | -11/Scrapyard | Entered Materials 193 | -10/Materials | Discovered new exit (range 15) 312 | -10/Materials | Build established: Mutant 334 | -10/Materials | Identified exit to Mines 356 | -10/Materials | Discovered new exit (range 10) 489 | -10/Materials | Entered Mines 525 | -10/Mines | Core integrity fell below 50% 611 | -10/Mines | Assembled infested the area 683 | -10/Mines | Lost 3 parts (1p2w) 695 | -10/Mines | Core integrity fell below 20% 799 | -10/Mines | Destroyed by as-17175 with Assembled Rifle Last Messages --------------- 00745_ Acquired 6 matter. 00745_ K-01 Serf collects debris. 00748_ R-06 Scavenger destroyed. 00748_ K-01 Serf collects debris. 00750_ as-49433 sneak attacks. 00750_ K-01 Serf system corrupted by crushing effect. 00750_ K-01 Serf knocked back. 00751_ K-01 Serf system terminally corrupted. 00756_ as-49433 knocked back. 00759_ as-49433 destroyed. 00762_ Acquired 28 matter. 00765_ Acquired 40 matter. 00766_ as-15686 suffers critical hit (Blast). 00766_ as-15686 destroyed. 00773_ as-12199 destroyed. 00780_ as-17175 knocked back. 00782_ K-01 Serf collects debris. 00792_ as-22773 destroyed. 00792_ Wheel destroyed. 00792_ K-01 Serf collects debris. Map ----- +----------------------------------------------------+ | ??#########??????# #???#| ## ##??????????## | | ??# #??????# #?### ### #?????# ##### | | ??# ########%### # ####### | | ??# """ ## # ###### | | ??# "" # % #########???## | | ??# % ##### * ######????### | | ??# = #???# # # ! #??### | | ??# = #???## #### % #?## | | ??#########???## ##?# # ##### #?# | | ??????????????# ##?# # #???# ### | | ??????????????# ##### ###???# | | ?????????????## ##?# ##?????####### | | ?????????##### #?# #?????# ##???### | | ????????## #?# #????# #?????## | | ??????### #### #???# #??????## # | | ??????# ### |#### #???????### ## | | ??????# ### #?????????# #? | | ??????# ##### #?# #?????????# #? | | ??????#?????## #?## #?????????# ? | | ?????????????## ##??## %! #????????##### | | ??????????????####????## ## #???????????? | | ???????????????????????## !=##?? % #??????????? | | ????????????????????????#!%##???? #????????? | | ?????????????????????#??#=!#?????? ???????? | | ????????????????###### #%=#??????? ???????? | | ??????????????# %!% a !%@ #???????? ????????? | | ????????????????## %%! |%#???????? ?#????????? | | ?????????????????# ### # !! ????????#??????????? | | ?????????????????????# ## %%*=#?????????????????? | | ????????????????????? ??## %%[ ????????????????? | | ???????????????????? ????## k= =%??????????????? | | ??????????????????? ??????# ####?????????????? | | ?????????????????? ????????# ##????????????????? | | ????????????????? ??????????###?????????????????? | | ???????????????? ??????????????????????????????? | | ???????????????%[ ???????????????????????????????? | | ?????????????? =?????????????????????????????????? | | ?????????????????????????????????????????????????? | | ?????????????????????????????????????????????????? | | ?????????????????????????????????????????????????? | | ?????????????????????????????????????????????????? | | ?????????????????????????????????????????????????? | | ?????????????????????????????????????????????????? | | ?????????????????????????????????????????????????? | | ?????????????????????????????????????????????????? | | ?????????????????????????????????????????????????? | | ?????????????????????????????????????????????????? | | ?????????????????????????????????????????????????? | | ?????????????????????????????????????????????????? | | ?????????????????????????????????????????????????? | +----------------------------------------------------+ Best States ------------- Heat Dissipation 25 Energy Generation 10 Energy Capacity 250 Matter Stores 300 Matter Capacity 300 Sight Range 18 Terrain Scan Density 10 Evasion (%) 44 Item Schematics ----------------- None Robot Schematics ------------------ None Fabricated ------------ Nothing Alien Tech Used ----------------- None Achievements -------------- None Challenges ------------ None Game ------ Seed LongswordMappingGenerator Manual? 0 Play Time 00:08:23 Cumulative 881.5 hours Start 2024.08.22 @ 15:41:28 End 2024.08.22 @ 15:47:44 Sessions 1 Manual Loads 0 Difficulty Rogue Special Mode None Game No. 1068 Rogue 789 Adventurer 124 Explorer 155 Win Type - Total 37 Types 28/0/7/1/0/0/0/1/0 Lore% 77 Gallery% 89 Achievement% 78 Wizard Run 0 Options --------- Layout 0 ASCII 0 Keyboard 1 Movement Numpad Keybinds 0 Fullscreen 2 Font 18/Smallcaps Map View 76x50 Zoom Use 0% Tactical HUD 1 Map Filters NONE Filters NONE Steam 1 RUN: a4497039-1a0e-4252-a6e3-c4e1011e98fc